fUSD/lending_fUSD_20260226
["ID","MTS","AMOUNT","RATE_DAILY","PERIOD"]
[406674669,1772064003505,150.0,7.8e-05,7]
[406674695,1772064338830,-185.58482038,7.8e-05,2]
[406674697,1772064350070,9000.0,7.8e-05,3]
[406674711,1772064498686,1225.76,8e-05,10]
[406675027,1772064632270,-2300.0,7.8e-05,2]
[406675029,1772064632280,-1200.0,7.899e-05,2]
[406675030,1772064632290,-210.00000002,7.9e-05,2]
[406675031,1772064632302,-495.19096835,7.9e-05,2]
[406675032,1772064632335,-258.87161287,7.9e-05,2]
[406675033,1772064632347,-463.32343304,7.9e-05,2]
[406675034,1772064632359,-3172.61398572,7.9e-05,2]
[406675035,1772064632368,-7000.0,8e-05,2]
[406675036,1772064632378,-1409.807,8.059e-05,2]
[406675037,1772064632390,-159.018,8.059e-05,2]
[406675038,1772064632400,-550.12146706,8.121e-05,2]
[406675039,1772064632409,-411.12997121,8.121e-05,2]
[406675040,1772064632418,-500.0,8.121e-05,2]
[406675041,1772064632428,-170889.57775376,8.122e-05,2]
[406675042,1772064632439,-117471.13894014,8.122e-05,2]
[406675043,1772064632457,-3082.07832774,8.122e-05,2]
[406675195,1772064640648,-504.7946961,8.122e-05,2]
[406675196,1772064640929,-1708052.41028226,8.122e-05,2]
[406675197,1772064640938,-4132.8248,8.123e-05,2]
[406675198,1772064640948,-89527.5151,8.123e-05,2]
[406675199,1772064640958,-500.0,8.219e-05,2]
[406675200,1772064640967,-492.26444478,8.219e-05,2]
[406675201,1772064640976,-500.0,8.219e-05,2]
[406675202,1772064640985,-500.0,8.219e-05,2]
[406675203,1772064640995,-500.0,8.219e-05,2]
[406675204,1772064641004,-500.0,8.219e-05,2]
[406675205,1772064641014,-500.0,8.219e-05,2]
[406675206,1772064641023,-500.0,8.222e-05,2]
[406675207,1772064641033,-534.43919596,8.222e-05,2]
[406675208,1772064641042,-534.43919596,8.222e-05,2]
[406675209,1772064641052,-534.43919596,8.222e-05,2]
[406675210,1772064641062,-534.43919596,8.222e-05,2]
[406675211,1772064641071,-534.43919596,8.222e-05,2]
[406675212,1772064641080,-534.43919596,8.222e-05,2]
[406675213,1772064641089,-534.43919596,8.222e-05,2]
[406675214,1772064641098,-534.43919596,8.222e-05,2]
[406675215,1772064641108,-534.43919596,8.222e-05,2]
[406675216,1772064641117,-534.43919596,8.222e-05,2]
[406675217,1772064641126,-534.43919596,8.222e-05,2]
[406675218,1772064641135,-534.43919596,8.222e-05,2]
[406675219,1772064641145,-534.43919596,8.222e-05,2]
[406675220,1772064641155,-534.43919596,8.222e-05,2]
[406675221,1772064641166,-534.43919596,8.222e-05,2]
[406675222,1772064641176,-534.43919596,8.222e-05,2]
[406675223,1772064641185,-534.43919596,8.222e-05,2]
[406675225,1772064641194,-534.43919596,8.222e-05,2]
[406675227,1772064641205,-534.43919596,8.222e-05,2]
[406675228,1772064641214,-534.43919596,8.222e-05,2]
[406675229,1772064641223,-534.43919596,8.222e-05,2]
[406675230,1772064641233,-534.43919596,8.222e-05,2]
[406675231,1772064641244,-534.43919596,8.222e-05,2]
[406675232,1772064641255,-534.43919596,8.222e-05,2]
[406675233,1772064641265,-534.43919596,8.222e-05,2]
[406675234,1772064641274,-534.43919596,8.222e-05,2]
[406675235,1772064641284,-534.43919596,8.222e-05,2]
[406675236,1772064641293,-534.43919596,8.222e-05,2]
[406675237,1772064641302,-534.43919596,8.222e-05,2]
[406675238,1772064641311,-534.43919596,8.222e-05,2]
[406675239,1772064641320,-534.43919596,8.222e-05,2]
[406675240,1772064641330,-534.43919596,8.222e-05,2]
[406675241,1772064641340,-534.43919596,8.222e-05,2]
[406675242,1772064641349,-534.43919596,8.222e-05,2]
[406675243,1772064641359,-534.43919596,8.222e-05,2]
[406675244,1772064641369,-534.43919596,8.222e-05,2]
[406675245,1772064641378,-534.43919596,8.222e-05,2]
[406675246,1772064641388,-534.43919596,8.222e-05,2]
[406675247,1772064641397,-534.43919596,8.222e-05,2]
[406675248,1772064641407,-534.43919596,8.222e-05,2]
[406675249,1772064641416,-534.43919596,8.222e-05,2]
[406675250,1772064641426,-534.43919596,8.222e-05,2]
[406675251,1772064641435,-534.43919596,8.222e-05,2]
[406675252,1772064641445,-534.43919596,8.222e-05,2]
[406675253,1772064641454,-534.43919596,8.222e-05,2]
[406675254,1772064641463,-534.43919596,8.222e-05,2]
[406675255,1772064641472,-534.43919596,8.222e-05,2]
[406675256,1772064641482,-534.43919596,8.222e-05,2]
[406675257,1772064641491,-534.43919596,8.222e-05,2]
[406675258,1772064641500,-530.32812523,8.222e-05,2]
[406675259,1772064641510,-530.32812523,8.222e-05,2]
[406675260,1772064641520,-530.32812523,8.222e-05,2]
[406675261,1772064641530,-530.32812523,8.222e-05,2]
[406675262,1772064641539,-530.32812523,8.222e-05,2]
[406675263,1772064641549,-530.32812523,8.222e-05,2]
[406675264,1772064641558,-530.32812523,8.222e-05,2]
[406675265,1772064641568,-530.32812523,8.222e-05,2]
[406675266,1772064641577,-530.32812523,8.222e-05,2]
[406675267,1772064641587,-530.32812523,8.222e-05,2]
[406675268,1772064641597,-530.32812523,8.222e-05,2]
[406675269,1772064641606,-530.32812523,8.222e-05,2]
[406675270,1772064641615,-530.32812523,8.222e-05,2]
[406675271,1772064641625,-530.32812523,8.222e-05,2]
[406675272,1772064641635,-530.32812523,8.222e-05,2]
[406675273,1772064641644,-530.32812523,8.222e-05,2]
[406675274,1772064641654,-530.32812523,8.222e-05,2]
[406675275,1772064641663,-530.32812523,8.222e-05,2]
[406675276,1772064641673,-530.32812523,8.222e-05,2]
[406675277,1772064641683,-530.32812523,8.222e-05,2]
[406675278,1772064641692,-530.32812523,8.222e-05,2]
[406675279,1772064641702,-530.32812523,8.222e-05,2]
[406675280,1772064641711,-530.32812523,8.222e-05,2]
[406675281,1772064641720,-530.32812523,8.222e-05,2]
[406675282,1772064641730,-530.32812523,8.222e-05,2]
[406675283,1772064641739,-530.32812523,8.222e-05,2]
[406675284,1772064641749,-530.32812523,8.222e-05,2]
[406675285,1772064641758,-530.32812523,8.222e-05,2]
[406675286,1772064641768,-500.0,8.222e-05,2]
[406675287,1772064641777,-500.0,8.222e-05,2]
[406675288,1772064641787,-448.7571794,8.222e-05,2]
[406675289,1772064641797,-500.0,8.222e-05,2]
[406675290,1772064641806,-182.90533047,8.222e-05,2]
[406675291,1772064641817,-525.02484398,8.222e-05,2]
[406675292,1772064641826,-525.02484398,8.222e-05,2]
[406675293,1772064641835,-525.02484398,8.222e-05,2]
[406675294,1772064641845,-525.02484398,8.222e-05,2]
[406675295,1772064641854,-525.02484398,8.222e-05,2]
[406675296,1772064641864,-525.02484398,8.222e-05,2]
[406675297,1772064641874,-525.02484398,8.222e-05,2]
[406675298,1772064641885,-525.02484398,8.222e-05,2]
[406675299,1772064641894,-525.02484398,8.222e-05,2]
[406675300,1772064641904,-500.0,8.222e-05,2]
[406675301,1772064641914,-500.0,8.222e-05,2]
[406675302,1772064641923,-500.0,8.222e-05,2]
[406675303,1772064641932,-500.0,8.222e-05,2]
[406675304,1772064641942,-279.18048702,8.222e-05,2]
[406675305,1772064641952,-525.02484397,8.222e-05,2]
[406675306,1772064641961,-332.9363957,8.222e-05,2]
[406675307,1772064641970,-626.3544,8.223e-05,2]
[406675308,1772064641980,-250.0,8.58e-05,2]
[406675309,1772064641991,-500.0,8.58e-05,2]
[406675310,1772064642000,-500.0,8.58e-05,2]
[406675311,1772064642010,-250.0,8.58e-05,2]
[406675312,1772064642020,-250.0,8.58e-05,2]
[406675313,1772064642029,-500.0,8.58e-05,2]
[406675314,1772064642039,-500.0,8.58e-05,2]
[406675315,1772064642048,-500.0,8.58e-05,2]
[406675316,1772064642058,-2500.0,8.58e-05,2]
[406675317,1772064642067,-1680.0,8.689e-05,2]
[406675318,1772064642076,-2351.0,9.558e-05,2]
[406675319,1772064642086,-151.0,0.0001,2]
[406675320,1772064642096,-151.0,0.0001,2]
[406675321,1772064642105,-151.0,0.0001,2]
[406675322,1772064642115,-151.0,0.0001,2]
[406675323,1772064642125,-151.0,0.0001,2]
[406675324,1772064642136,-151.0,0.0001,2]
[406675325,1772064642144,-151.0,0.0001,2]
[406675326,1772064642154,-151.0,0.0001,2]
[406675327,1772064642165,-151.0,0.0001,2]
[406675328,1772064642175,-151.0,0.0001,2]
[406675329,1772064642184,-151.0,0.0001,2]
[406675330,1772064642194,-151.0,0.0001,2]
[406675331,1772064642205,-151.0,0.0001,2]
[406675332,1772064642214,-151.0,0.0001,2]
[406675333,1772064642224,-151.0,0.0001,2]
[406675334,1772064642235,-215.49916035,0.0001,2]
[406675335,1772064642244,-500.0,0.000103,2]
[406675336,1772064642253,-500.0,0.000103,2]
[406675337,1772064642263,-500.0,0.000103,2]
[406675338,1772064642273,-500.0,0.000103,2]
[406675339,1772064642282,-250.0,0.00010426,2]
[406675340,1772064642294,-9999.99,0.00010475,2]
[406675341,1772064642303,-150.99,0.00010475,2]
[406675342,1772064642313,-299.99,0.00010475,2]
[406675343,1772064642322,-3292.0,0.00010514,2]
[406675344,1772064642332,-25314.65,0.00010709,2]
[406675345,1772064642346,-5265.16,0.00010815,2]
[406675346,1772064642355,-14922.25,0.00010959,2]
[406675347,1772064642364,-3396.67997086,0.00011099,2]
[406675348,1772064642374,-3396.67997083,0.00011099,2]
[406675349,1772064642384,-3396.67997083,0.00011099,2]
[406675350,1772064642394,-18751.02067344,0.00011099,2]
[406675351,1772064642404,-18751.02067343,0.00011099,2]
[406675352,1772064642413,-18751.02067343,0.00011099,2]
[406675353,1772064642422,-166.66,0.00011139,2]
[406675354,1772064642432,-161.12,0.00011233,2]
[406675355,1772064642442,-18751.02067343,0.00011315,2]
[406675356,1772064642451,-3396.67997083,0.00011382,2]
[406675357,1772064642461,-166.66,0.00011507,2]
[406675358,1772064642470,-150.0,0.00011543,2]
[406675359,1772064642479,-447.0,0.00011565,2]
[406675360,1772064642489,-24763.0,0.000118,2]
[406675361,1772064642499,-166.66,0.00011874,2]
[406675362,1772064642508,-500.0,0.0001216,2]
[406675363,1772064642518,-5531.0,0.000122,3]
[406675364,1772064642527,-166.66,0.00012242,2]
[406675365,1772064642536,-18751.02067343,0.00012412,2]
[406675366,1772064642545,-3396.67997083,0.00012468,2]
[406675367,1772064642555,-150.0,0.00012547,2]
[406675368,1772064642564,-5531.0,0.000126,5]
[406675369,1772064642573,-166.66,0.0001261,2]
[406675370,1772064642583,-500.0,0.0001289,2]
[406675371,1772064642592,-500.0,0.0001289,2]
[406675372,1772064642601,-500.0,0.0001289,2]
[406675373,1772064642611,-500.0,0.0001289,2]
[406675374,1772064642620,-500.0,0.0001289,2]
[406675375,1772064642631,-500.0,0.0001289,2]
[406675376,1772064642641,-500.0,0.0001289,2]
[406675377,1772064642652,-500.0,0.0001289,2]
[406675378,1772064642662,-500.0,0.0001289,2]
[406675379,1772064642671,-500.0,0.0001289,2]
[406675380,1772064642681,-500.0,0.0001289,2]
[406675381,1772064642691,-500.0,0.0001289,2]
[406675382,1772064642701,-500.0,0.0001289,2]
[406675383,1772064642711,-500.0,0.0001289,2]
[406675384,1772064642720,-704.59409661,0.0001289,2]
[406675385,1772064642729,-500.0,0.0001289,2]
[406675386,1772064642739,-166.66,0.00012977,2]
[406675387,1772064642748,-18751.02067343,0.0001351,2]
[406675388,1772064642758,-3396.67997083,0.00013554,2]
[406675389,1772064642768,-500.0,0.00013698,2]
[406675390,1772064642777,-387.31685331,0.00013698,2]
[406675391,1772064642787,-500.0,0.00013698,2]
[406675392,1772064642797,-500.0,0.00013698,2]
[406675393,1772064642806,-500.0,0.00013698,2]
[406675394,1772064642816,-500.0,0.00013698,2]
[406675395,1772064642825,-500.0,0.00013698,2]
[406675396,1772064642835,-400.83516378,0.00013698,2]
[406675397,1772064642845,-500.0,0.00013698,2]
[406675398,1772064642854,-500.0,0.00013698,2]
[406675399,1772064642992,-500.0,0.00013698,2]
[406675400,1772064643003,-500.0,0.00013698,2]
[406675401,1772064643013,-500.0,0.00013698,2]
[406675402,1772064643022,-500.0,0.00013698,2]
[406675403,1772064643032,-500.0,0.00013698,2]
[406675404,1772064643041,-500.0,0.00013698,2]
[406675405,1772064643051,-500.0,0.00013698,2]
[406675406,1772064643060,-500.0,0.00013698,2]
[406675407,1772064643070,-269.06190613,0.00013698,2]
[406675408,1772064643079,-500.0,0.00013698,2]
[406675409,1772064643088,-500.0,0.00013698,2]
[406675410,1772064643098,-453.06341333,0.00013698,2]
[406675411,1772064643107,-500.0,0.00013698,2]
[406675412,1772064643117,-500.0,0.00013698,2]
[406675413,1772064643126,-661.89,0.00013699,2]
[406675414,1772064643136,-500.0,0.00013699,2]
[406675415,1772064643146,-500.0,0.00013699,2]
[406675416,1772064643156,-163.76963508,0.00013699,2]
[406675417,1772064643169,-500.0,0.00013699,2]
[406675418,1772064643179,-500.0,0.00013699,2]
[406675419,1772064643188,-500.0,0.00013699,2]
[406675420,1772064643198,-500.0,0.00013699,2]
[406675421,1772064643210,-500.0,0.00013699,2]
[406675422,1772064643220,-161.14332278,0.00013699,2]
[406675423,1772064643230,-500.0,0.00013699,2]
[406675424,1772064643245,-500.0,0.00013699,2]
[406675425,1772064643254,-278.93340404,0.00013699,2]
[406675426,1772064643264,-163.99667352,0.00013699,2]
[406675427,1772064643273,-524.32496394,0.00013699,2]
[406675428,1772064643283,-500.0,0.00013699,2]
[406675429,1772064643293,-500.0,0.00013699,2]
[406675430,1772064643302,-500.0,0.00013699,2]
[406675431,1772064643312,-335.65029794,0.00013699,2]
[406675432,1772064643321,-620.36908714,0.00013699,2]
[406675433,1772064643330,-500.0,0.00013699,2]
[406675434,1772064643339,-500.0,0.00013699,2]
[406675435,1772064643349,-500.0,0.00013699,2]
[406675436,1772064643358,-500.0,0.00013699,2]
[406675437,1772064643368,-500.0,0.00013699,2]
[406675438,1772064643377,-160.89687395,0.00013699,2]
[406675439,1772064643389,-500.0,0.00013699,2]
[406675440,1772064643398,-308.64663473,0.00013699,2]
[406675441,1772064643408,-209.669428,0.00013699,2]
[406675442,1772064643418,-500.0,0.00013699,2]
[406675443,1772064643428,-500.0,0.00013699,2]
[406675444,1772064643437,-500.0,0.00013699,2]
[406675445,1772064643447,-161.12812418,0.00013699,2]
[406675446,1772064643457,-500.0,0.00013699,2]
[406675447,1772064643466,-500.0,0.00013699,2]
[406675448,1772064643476,-500.0,0.00013699,2]
[406675449,1772064643486,-500.0,0.00013699,2]
[406675450,1772064643495,-337.75482183,0.00013699,2]
[406675451,1772064643505,-500.0,0.00013699,2]
[406675452,1772064643514,-500.0,0.00013699,2]
[406675453,1772064643524,-500.0,0.00013699,2]
[406675454,1772064643533,-500.0,0.00013699,2]
[406675455,1772064643543,-500.0,0.00013699,2]
[406675456,1772064643552,-500.0,0.00013699,2]
[406675457,1772064643562,-160.16,0.00013699,2]
[406675458,1772064643571,-500.0,0.00013699,2]
[406675459,1772064643580,-500.0,0.00013699,2]
[406675460,1772064643590,-500.0,0.00013699,2]
[406675461,1772064643600,-500.0,0.00013699,2]
[406675462,1772064643609,-500.0,0.00013699,2]
[406675463,1772064643619,-500.0,0.00013699,2]
[406675464,1772064643629,-500.0,0.00013699,2]
[406675465,1772064643639,-500.0,0.00013699,2]
[406675466,1772064643649,-500.0,0.00013699,2]
[406675467,1772064643658,-500.0,0.00013699,2]
[406675468,1772064643667,-500.0,0.00013699,2]
[406675469,1772064643676,-500.0,0.00013699,2]
[406675470,1772064643685,-500.0,0.00013699,2]
[406675471,1772064643695,-500.0,0.00013699,2]
[406675472,1772064643704,-162.08719206,0.00013699,2]
[406675473,1772064643714,-500.0,0.00013699,2]
[406675474,1772064643724,-500.0,0.00013699,2]
[406675475,1772064643733,-500.0,0.00013699,2]
[406675476,1772064643742,-500.0,0.00013699,2]
[406675477,1772064643752,-500.0,0.00013699,2]
[406675478,1772064643762,-500.0,0.00013699,2]
[406675479,1772064643772,-500.0,0.00013699,2]
[406675480,1772064643781,-500.0,0.00013699,2]
[406675481,1772064643791,-500.0,0.00013699,2]
[406675482,1772064643800,-1007.67306464,0.00014247,2]
[406675483,1772064643810,-1000.0,0.00014247,2]
[406675484,1772064643819,-800.44121468,0.00014247,2]
[406675485,1772064643829,-776.00043833,0.00014247,2]
[406675486,1772064643838,-1000.0,0.00014247,2]
[406675487,1772064643849,-1000.0,0.00014247,2]
[406675488,1772064643859,-1000.0,0.00014247,2]
[406675489,1772064643868,-1000.0,0.00014247,2]
[406675490,1772064643877,-604.2577825,0.00014247,2]
[406675491,1772064643888,-380.44800806,0.00014247,2]
[406675492,1772064643898,-1000.0,0.00014247,2]
[406675493,1772064643907,-1000.0,0.00014247,2]
[406675494,1772064643916,-1000.0,0.00014247,2]
[406675495,1772064643926,-1000.0,0.00014247,2]
[406675496,1772064643934,-1000.0,0.00014247,2]
[406675497,1772064643944,-1000.0,0.00014247,2]
[406675498,1772064643953,-1000.0,0.00014247,2]
[406675499,1772064643962,-1000.0,0.00014247,2]
[406675500,1772064643972,-467.67692832,0.00014247,2]
[406675501,1772064643981,-351.72128687,0.00014247,2]
[406675502,1772064643991,-1008.34147468,0.00014247,2]
[406675503,1772064644000,-1000.0,0.00014247,2]
[406675504,1772064644010,-1000.0,0.00014247,2]
[406675505,1772064644020,-502.69399529,0.00014247,2]
[406675506,1772064644030,-992.23312849,0.00014247,2]
[406675507,1772064644039,-1000.0,0.00014247,2]
[406675508,1772064644049,-1000.0,0.00014247,2]
[406675509,1772064644059,-1000.0,0.00014247,2]
[406675510,1772064644068,-1000.0,0.00014247,2]
[406675511,1772064644078,-1000.0,0.00014247,2]
[406675512,1772064644088,-1000.0,0.00014247,2]
[406675513,1772064644097,-1000.0,0.00014247,2]
[406675514,1772064644107,-1000.0,0.00014247,2]
[406675515,1772064644116,-1000.0,0.00014247,2]
[406675516,1772064644126,-1000.0,0.00014247,2]
[406675517,1772064644135,-1000.0,0.00014247,2]
[406675518,1772064644145,-175.96468334,0.00014247,2]
[406675519,1772064644154,-374.88076834,0.00014247,2]
[406675520,1772064644169,-1000.0,0.00014247,2]
[406675521,1772064644178,-502.589699,0.00014247,2]
[406675522,1772064644188,-1000.0,0.00014247,2]
[406675523,1772064644198,-1000.0,0.00014247,2]
[406675524,1772064644210,-1000.0,0.00014247,2]
[406675525,1772064644220,-1000.0,0.00014247,2]
[406675526,1772064644229,-1004.88674942,0.00014247,2]
[406675527,1772064644238,-185.59048766,0.00014247,2]
[406675528,1772064644248,-1000.0,0.00014247,2]
[406675529,1772064644257,-1000.0,0.00014247,2]
[406675530,1772064644265,-500.72491405,0.00014247,2]
[406675531,1772064644275,-1000.0,0.00014247,2]
[406675532,1772064644284,-1000.0,0.00014247,2]
[406675533,1772064644294,-1000.0,0.00014247,2]
[406675534,1772064644303,-1000.0,0.00014247,2]
[406675535,1772064644313,-1003.12005961,0.00014247,2]
[406675536,1772064644323,-18751.02067343,0.00014607,2]
[406675537,1772064644332,-3396.67997083,0.0001464,2]
[406675538,1772064644342,-1500.0,0.00014795,2]
[406675539,1772064644352,-1500.0,0.00014795,2]
[406675540,1772064644361,-1505.84689332,0.00014795,2]
[406675541,1772064644370,-1500.0,0.00014795,2]
[406675542,1772064644380,-1500.0,0.00014804,2]
[406675543,1772064644389,-160.0,0.00015184,2]
[406675544,1772064644399,-173.91437885,0.00015184,2]
[406675545,1772064644408,-2000.0,0.00015342,2]
[406675546,1772064644417,-18751.02067343,0.00015704,2]
[406675547,1772064644427,-3396.67997083,0.00015727,2]
[406675548,1772064644436,-9300.0,0.000158,5]
[406675549,1772064644446,-2500.0,0.0001589,2]
[406675550,1772064644456,-11700.0,0.000159,5]
[406675551,1772064644465,-166.66,0.00015918,2]
[406675552,1772064644475,-215.49916035,0.0001592,2]
[406675553,1772064644483,-16142.04137006,0.00015927,2]
[406675554,1772064644493,-186.9849217,0.00015927,2]
[406675555,1772064644502,-1500000.0,0.0001593,2]
[406675556,1772064644511,-2571.03746549,0.00016027,2]
[406675557,1772064644521,-1459.34622594,0.00016127,2]
[406675558,1772064644531,-201.59337924,0.00016127,2]
[406675559,1772064644540,-474.07483601,0.00016227,2]
[406675560,1772064644549,-1090.23295473,0.00016227,2]
[406675561,1772064644558,-166.66,0.00016253,2]
[406675562,1772064644568,-500.0,0.00016356,2]
[406675563,1772064644578,-500.0,0.00016356,2]
[406675564,1772064644587,-844.0,0.000164,2]
[406675565,1772064644596,-491.0,0.00016438,2]
[406675566,1772064644606,-500.0,0.00016438,2]
[406675567,1772064644615,-500.0,0.00016438,3]
[406675568,1772064644624,-500.0,0.00016438,4]
[406675569,1772064644634,-500.0,0.00016438,5]
[406675570,1772064644644,-500.0,0.00016438,6]
[406675571,1772064644653,-500.0,0.00016438,7]
[406675572,1772064644663,-500.0,0.00016438,8]
[406675573,1772064644672,-500.0,0.00016438,9]
[406675574,1772064644681,-500.0,0.00016438,10]
[406675575,1772064644691,-500.0,0.00016438,11]
[406675576,1772064644700,-500.0,0.00016438,12]
[406675577,1772064644709,-500.0,0.00016438,13]
[406675578,1772064644719,-500.0,0.00016438,14]
[406675579,1772064644728,-500.0,0.00016438,15]
[406675580,1772064644737,-500.0,0.00016438,16]
[406675581,1772064644747,-500.0,0.00016438,17]
[406675582,1772064644756,-228.05,0.00016438,2]
[406675583,1772064644766,-1000.0,0.00016438,2]
[406675584,1772064644775,-1187.89476674,0.00016438,2]
[406675585,1772064644786,-491.0,0.00016493,2]
[406675586,1772064644795,-491.0,0.00016548,2]
[406675587,1772064644805,-166.66,0.00016588,2]
[406675588,1772064644814,-491.0,0.00016602,2]
[406675589,1772064644824,-491.0,0.00016657,2]
[406675590,1772064644833,-491.0,0.00016712,2]
[406675591,1772064644842,-1017.2,0.00016712,2]
[406675592,1772064644851,-1000.0,0.00016712,2]
[406675593,1772064644860,-2843.0,0.0001672,2]
[406675594,1772064644870,-844.0,0.0001672,2]
[406675595,1772064644879,-952.0,0.0001672,2]
[406675596,1772064644889,-844.0,0.0001672,2]
[406675597,1772064644900,-491.0,0.00016767,2]
[406675598,1772064644909,-200.0,0.00016792,2]
[406675599,1772064644918,-18751.02067343,0.00016802,2]
[406675600,1772064644928,-3396.67997083,0.00016813,2]
[406675601,1772064644937,-491.0,0.00016822,2]
[406675602,1772064644947,-491.0,0.00016876,2]
[406675603,1772064644956,-16142.04137005,0.00016914,2]
[406675604,1772064644965,-186.98492168,0.00016914,2]
[406675605,1772064644975,-166.66,0.00016923,2]
[406675606,1772064644985,-491.0,0.00016931,2]
[406675607,1772064644994,-429.0,0.00016976,2]
[406675608,1772064645004,-1219.12,0.0001698,2]
[406675609,1772064645013,-920.0,0.0001698,2]
[406675610,1772064645022,-2456.0,0.0001698,2]
[406675611,1772064645032,-5982.0,0.0001698,2]
[406675612,1772064645045,-4572.0,0.0001698,2]
[406675613,1772064645054,-491.0,0.00016986,2]
[406675614,1772064645063,-1017.2,0.00016986,2]
[406675615,1772064645072,-162.67,0.00016986,2]
[406675616,1772064645082,-1193.0,0.00016986,2]
[406675617,1772064645091,-500.0,0.00017,7]
[406675618,1772064645100,-500.0,0.00017,7]
[406675619,1772064645110,-500.0,0.00017,7]
[406675620,1772064645119,-500.0,0.00017,7]
[406675621,1772064645128,-162.78,0.00017,7]
[406675622,1772064645138,-113926.39499395,0.00017,2]
[406675623,1772064645148,-500.0,0.00017,5]
[406675624,1772064645157,-364.33297037,0.00017,2]
[406675625,1772064645169,-1459.34622593,0.00017014,2]
[406675626,1772064645178,-201.59337924,0.00017014,2]
[406675627,1772064645188,-844.0,0.0001704,2]
[406675628,1772064645198,-491.0,0.00017041,2]
[406675629,1772064645208,-500.0,0.00017051,2]
[406675630,1772064645218,-491.0,0.00017096,2]
[406675631,1772064645228,-277.35679052,0.00017099,2]
[406675632,1772064645239,-174.25797996,0.000171,2]
[406675633,1772064645248,-350.0,0.00017105,2]
[406675634,1772064645258,-491.0,0.0001715,2]
[406675635,1772064645388,-491.0,0.00017205,2]
[406675636,1772064645398,-350.0,0.00017216,2]
[406675637,1772064645407,-166.66,0.00017258,2]
[406675638,1772064645417,-491.0,0.0001726,2]
[406675639,1772064645426,-1017.2,0.0001726,2]
[406675640,1772064645435,-350.0,0.00017287,2]
[406675641,1772064645444,-507.0,0.00017288,2]
[406675642,1772064645454,-491.0,0.00017315,2]
[406675643,1772064645463,-160.0,0.0001736,2]
[406675644,1772064645472,-160.0,0.0001736,2]
[406675645,1772064645482,-491.0,0.0001737,2]
[406675646,1772064645491,-429.0,0.00017388,2]
[406675647,1772064645500,-507.0,0.00017391,2]
[406675648,1772064645510,-2300.0,0.000174,6]
[406675649,1772064645520,-491.0,0.00017424,2]
[406675650,1772064645530,-227.0,0.0001747,2]
[406675651,1772064645539,-491.0,0.00017479,2]
[406675652,1772064645549,-2300.0,0.000175,6]
[406675653,1772064645558,-1106.96603771,0.00017532,2]
[406675654,1772064645569,-1565.86000433,0.00017532,2]
[406675655,1772064645578,-491.0,0.00017534,2]
[406675656,1772064645587,-1017.2,0.00017534,2]
[406675657,1772064645597,-162.67,0.00017534,2]
[406675658,1772064645606,-507.0,0.00017534,2]
[406675659,1772064645617,-507.0,0.00017548,2]
[406675660,1772064645627,-491.0,0.00017589,2]
[406675661,1772064645636,-507.0,0.0001759,2]
[406675662,1772064645646,-166.66,0.00017593,2]
[406675663,1772064645656,-2300.0,0.000176,6]
[406675664,1772064645667,-1725.32718527,0.0001764,2]
[406675665,1772064645676,-491.0,0.00017643,2]
[406675666,1772064645686,-287.61899177,0.00017647,2]
[406675667,1772064645695,-286.0,0.00017659,2]
[406675668,1772064645704,-2843.0,0.0001768,2]
[406675669,1772064645714,-507.0,0.00017698,2]
[406675670,1772064645723,-2300.0,0.000177,6]
[406675671,1772064645732,-11087.89263458,0.000177,2]
[406675672,1772064645742,-9999.99,0.00017728,2]
[406675673,1772064645752,-21.63546736,0.0001773,2]
[406675674,1772064646027,-128.36453264,0.0001773,2]
[406675675,1772064646037,-150.0,0.00017735,2]
[406675676,1772064646046,-86.94446631,0.00017751,2]